bitfinex-derivatives/quotes_BNBF0:USTF0_20250329
["timestamp","ask_amount","ask_price","bid_price","bid_amount"]
[1743242396173,2.27723203,606.8,606.39,0.27073559]
[1743242396371,3.76210485,606.79,606.39,0.27073559]
[1743242396577,2.27723203,606.78,606.39,0.27073559]
[1743242396779,3.76205969,606.77,606.38,0.28680334]
[1743242397079,3.76212171,606.76,606.39,0.27073559]
[1743242397278,2.27723203,606.75,606.39,0.27073559]
[1743242397479,2.2769127,606.74,606.39,0.27073559]
[1743242397778,2.2769127,606.73,606.39,0.27073559]
[1743242398079,2.2769127,606.72,606.39,0.27073559]
[1743242398379,0.92795879,606.71,606.39,0.27073559]
[1743242398571,0.92795879,606.7,606.39,0.27073559]
[1743242398775,2.82544821,606.73,606.4,0.27074055]
[1743242398973,1.08671085,606.7,606.39,0.27074055]
[1743242399176,1.08671085,606.7,606.4,0.27074055]
[1743242399372,1.08671085,606.7,606.48,1.23026836]
[1743242399575,1.08671085,606.7,606.49,0.27074055]
[1743242399880,1.08671085,606.69,606.5,0.27074824]
[1743242400074,1.08671085,606.69,606.51,0.27074824]
[1743242400276,1.34785965,606.68,606.49,0.27074824]
[1743242400578,2.82451849,606.68,606.5,0.27074824]
[1743242400774,2.82451849,606.68,606.48,1.23026836]
[1743242400775,2.82451849,606.68,606.49,0.27074824]
[1743242400980,0.92778796,606.67,606.5,0.27074824]
[1743242401181,0.92778796,606.66,606.51,1.23026836]
[1743242401381,1.08671085,606.67,606.52,0.27074824]
[1743242401581,0.92766492,606.66,606.52,0.27074824]
[1743242401781,0.92770713,606.65,606.52,0.27074824]
[1743242401983,1.08671085,606.67,606.52,0.27074824]
[1743242402286,2.01423052,606.66,606.52,0.27074824]
[1743242402477,0.92751967,606.65,606.52,0.27074824]
[1743242402680,0.92751967,606.64,606.52,0.27074824]
[1743242402878,0.92752072,606.63,606.52,0.27074824]
[1743242403078,0.92749636,606.62,606.52,0.27074824]
[1743242403282,1.08671085,606.62,606.5,1.23026836]
[1743242403482,1.08671085,606.62,606.51,0.27077277]
[1743242403683,1.08671085,606.61,606.51,0.27077277]
[1743242404284,1.08671085,606.6,606.51,0.27077277]
[1743242405081,1.08671085,606.59,606.51,0.27077277]
[1743242405385,1.08671085,606.59,606.52,0.27077277]
[1743242405586,1.08671085,606.58,606.4,0.27077277]
[1743242405884,1.08671085,606.58,606.46,0.2868057]
[1743242406185,1.63827636,606.86,606.47,0.27077277]
[1743242406384,6.40926433,606.85,606.47,0.27077277]
[1743242406587,6.40926433,606.84,606.47,0.27077277]
[1743242406881,5.91521341,606.83,606.47,0.27077277]
[1743242407081,5.91521341,606.82,606.47,1.50104113]
[1743242407287,3.75921731,606.81,606.48,0.27077277]
[1743242407478,3.75921731,606.8,606.48,0.27077277]
[1743242407679,3.75919355,606.79,606.48,0.27077277]
[1743242407881,2.27508208,606.78,606.48,0.27077277]
[1743242408084,2.27508208,606.77,606.48,0.27077277]
[1743242408382,2.27508208,606.76,606.48,0.27077277]
[1743242408586,0.92758452,606.75,606.49,0.27073576]
[1743242408787,2.01349578,606.74,606.5,0.27073576]
[1743242408989,0.92758452,606.73,606.48,0.27073576]
[1743242409186,1.08591126,606.74,606.58,1.23026836]
[1743242409383,1.08591126,606.74,606.59,0.27073576]
[1743242409886,0.92785813,606.73,606.59,0.27073576]
[1743242410089,1.08591126,606.73,606.59,0.27073576]
[1743242410685,1.08591126,606.72,606.59,0.27073576]
[1743242411789,1.63827636,606.97,606.59,0.27073576]
[1743242411990,6.40738216,606.96,606.56,1.23026836]
[1743242412187,6.40738216,606.95,606.57,0.27073375]
[1743242412386,6.40738216,606.94,606.57,0.27073375]
[1743242412587,6.40738216,606.93,606.57,0.27073375]
[1743242412884,6.983647,606.92,606.57,0.27073375]
[1743242413089,6.40719531,606.91,606.57,0.27073375]
[1743242413282,9.88843527,606.9,606.57,0.27073375]
[1743242413487,6.40719531,606.89,606.57,0.27073375]
[1743242413688,5.9129655,606.88,606.57,0.27073375]
[1743242413883,5.9129655,606.87,606.58,0.27073322]
[1743242414092,5.9129655,606.86,606.59,0.27073322]
[1743242414390,5.9129655,606.85,606.6,0.27073322]
[1743242414585,3.75763809,606.84,606.64,1.23026836]
[1743242414787,3.75763809,606.83,606.65,0.27073322]
[1743242414989,5.91084155,606.82,606.65,0.27073322]
[1743242415288,5.91084155,606.82,606.64,1.23026836]
[1743242415289,5.90940594,606.81,606.64,1.23026836]
[1743242415486,5.90940594,606.8,606.64,1.23026836]
[1743242415687,5.90940594,606.79,606.64,1.23026836]
[1743242415888,5.90940594,606.78,606.64,1.23026836]
[1743242416091,3.48137291,606.79,606.64,1.23026836]
[1743242416092,5.90940594,606.77,606.64,1.23026836]
[1743242416289,5.9091896,606.76,606.64,1.23026836]
[1743242416491,3.75620248,606.75,606.64,1.23026836]
[1743242416798,3.75620248,606.74,606.64,1.23026836]
[1743242416993,3.75620248,606.73,606.54,0.28676671]
[1743242417192,3.75620248,606.72,606.55,0.27080476]
[1743242417395,2.2742175,606.71,606.55,0.27080476]
[1743242417596,2.2742175,606.7,606.56,0.27080476]
[1743242417793,2.2742175,606.69,606.57,0.27080476]
[1743242418102,2.2742175,606.68,606.58,0.27080476]
[1743242418300,0.92713787,606.67,606.54,0.27080476]
[1743242418497,0.92713787,606.66,606.55,0.27080476]
[1743242418698,0.92713787,606.65,606.53,1.23026836]
[1743242418894,1.08548389,606.68,606.54,0.27079589]
[1743242419397,1.08548389,606.67,606.55,0.27079589]
[1743242419596,1.08548389,606.67,606.52,1.23026836]
[1743242419999,1.08548389,606.66,606.53,0.27079489]
[1743242420997,1.08548389,606.65,606.53,0.27079489]
[1743242421803,1.08548389,606.64,606.53,0.27079489]
[1743242422205,1.08548389,606.64,606.46,0.27079489]
[1743242422401,1.08548389,606.64,606.47,0.27079489]
[1743242422601,1.08548389,606.63,606.46,0.27079489]
[1743242423202,0.92718796,606.62,606.46,0.27079489]
[1743242423502,2.27432333,606.61,606.46,0.27079489]
[1743242423702,0.92718796,606.6,606.47,0.27079489]
[1743242423902,0.92718796,606.59,606.46,0.27079489]
[1743242424100,0.92718796,606.58,606.47,0.27079489]
[1743242424304,1.08557536,606.6,606.48,0.27079489]
[1743242424604,2.27477818,606.59,606.49,0.27079489]
[1743242424798,0.927434,606.58,606.46,0.27079489]
[1743242424999,0.927434,606.57,606.47,0.27079489]
[1743242425204,0.92754563,606.56,606.46,0.27079489]
[1743242425404,1.08557536,606.59,606.47,0.27079489]
[1743242425603,1.08557536,606.56,606.47,0.27079489]
[1743242425809,1.08557536,606.56,606.48,0.27079489]
[1743242426005,1.08557536,606.56,606.46,0.27079489]
[1743242426207,1.08557536,606.56,606.47,0.27079489]
[1743242426401,1.08557536,606.55,606.48,0.27079489]
[1743242426605,1.08557536,606.55,606.49,0.27079489]
[1743242426802,1.08557536,606.55,606.46,0.27079489]
[1743242427005,1.08557536,606.54,606.47,0.27079489]
[1743242427201,1.08557536,606.54,606.46,0.27079489]
[1743242427407,1.08557536,606.54,606.45,0.28684825]
[1743242427408,1.08557536,606.54,606.5,1.23026836]
[1743242427606,1.08557536,606.54,606.51,0.27079489]
[1743242427803,1.08557536,606.53,606.51,0.27079489]
[1743242428309,1.63827636,606.82,606.51,0.27079489]
[1743242428508,0.98148753,606.79,606.51,0.27079489]
[1743242428703,6.41236311,606.78,606.51,0.27079489]
[1743242429009,6.41249942,606.77,606.51,0.27079489]
[1743242429203,6.41249942,606.76,606.51,0.27079489]
[1743242429406,6.41249942,606.75,606.51,0.27079489]
[1743242429606,6.41249942,606.74,606.51,0.27079489]
[1743242429807,1.63731664,606.87,606.51,0.27079489]
[1743242429808,9.40204132,606.73,606.51,0.27079489]
[1743242430005,5.91814342,606.72,606.51,0.27079489]
[1743242430204,5.91814342,606.71,606.51,0.27079489]
[1743242430407,4.43337835,606.7,606.51,0.27079489]
[1743242430712,3.7620879,606.69,606.51,0.27079489]
[1743242430908,3.7620879,606.68,606.51,0.27079489]
[1743242431110,3.76367695,606.67,606.52,1.23039454]
[1743242431313,2.27782368,606.66,606.53,0.27079489]
[1743242431514,2.27782368,606.65,606.53,0.27079489]
[1743242431712,2.27782368,606.64,606.53,0.27079489]
[1743242431907,2.27782368,606.63,606.53,0.27079489]
[1743242432113,0.92865829,606.62,606.53,0.27079489]
[1743242432314,0.92865829,606.61,606.53,0.27079489]
[1743242432510,1.08645437,606.61,606.53,0.27079489]
[1743242432718,1.08645437,606.61,606.58,1.23221343]
[1743242433012,1.08645437,606.61,606.59,0.27080925]
[1743242433411,1.08645437,606.6,606.59,0.27080925]
[1743242433813,1.08645437,606.6,606.58,1.23221343]
[1743242434016,0.92904492,606.59,606.58,1.23221343]
[1743242434918,2.01549929,606.59,606.58,1.23221343]
[1743242435114,2.01562085,606.59,606.58,1.23221343]
[1743242436220,2.01562085,606.59,606.4,0.28684471]
[1743242436417,0.92916648,606.58,606.41,0.2708243]
[1743242436614,0.92916648,606.57,606.41,0.2708243]
[1743242436820,1.08645437,606.59,606.41,0.2708243]
[1743242437021,0.92928946,606.58,606.41,0.2708243]
[1743242437222,1.08645437,606.56,606.41,0.2708243]
[1743242437521,1.63827636,606.83,606.41,0.2708243]
[1743242437718,6.4214292,606.82,606.41,0.2708243]
[1743242437915,6.4214292,606.81,606.42,0.27079407]
[1743242438223,6.4214292,606.8,606.43,0.27079407]
[1743242438426,6.4214292,606.79,606.41,0.27079407]
[1743242438619,6.4214292,606.78,606.42,0.27079407]
[1743242438818,6.4214292,606.77,606.41,0.55760568]
[1743242439015,6.4214292,606.76,606.42,0.27079407]
[1743242439217,5.92788576,606.75,606.42,0.27079407]
[1743242439430,3.48833305,606.77,606.42,0.27079407]
[1743242439431,3.767494,606.74,606.42,0.27079407]
[1743242439717,3.767494,606.73,606.42,0.27079407]
[1743242439922,3.767494,606.72,606.42,0.27079407]
[1743242440116,2.27995606,606.71,606.42,0.27079407]
[1743242440422,5.1092015,606.7,606.42,0.27079407]
[1743242440617,2.27995606,606.69,606.42,0.27079407]
[1743242440818,0.92971121,606.68,606.6,1.23221343]
[1743242441019,1.08817132,606.68,606.61,0.27079407]
[1743242441316,0.92977399,606.67,606.61,0.27079407]
[1743242441517,1.08817132,606.68,606.61,0.27079407]
[1743242441824,1.08817132,606.66,606.61,0.27079407]
[1743242442720,1.08817132,606.65,606.63,1.23221343]
[1743242442921,1.08817132,606.65,606.64,0.27073549]
[1743242443625,2.01785908,606.65,606.64,0.27073549]
[1743242444020,1.08817132,606.65,606.64,0.27073549]
[1743242444422,1.08817132,606.65,606.63,1.23221343]
[1743242444723,1.08817132,606.65,606.64,0.27073848]
[1743242445024,1.63827636,606.89,606.64,0.27073848]
[1743242445226,6.42324753,606.88,606.65,0.27073848]
[1743242445420,6.42324753,606.88,606.62,1.23221343]
[1743242445421,6.42324753,606.87,606.63,0.27073848]
[1743242445619,6.42324753,606.86,606.64,0.27073848]
[1743242445824,5.92900298,606.85,606.63,0.27073848]
[1743242446121,5.92900298,606.84,606.64,0.27073848]
[1743242446330,5.92900298,606.83,606.63,0.27073848]
[1743242446622,3.76789661,606.82,606.64,0.27073848]
[1743242446826,3.76789661,606.81,606.63,0.27073848]
[1743242447022,3.76789661,606.8,606.64,0.27073848]
[1743242447226,2.28038576,606.79,606.56,0.27073848]
[1743242447421,2.28038576,606.78,606.57,0.27073848]
[1743242447623,2.28038576,606.77,606.58,0.27073848]
[1743242447826,2.28038576,606.76,606.59,0.27073848]
[1743242448128,2.28076863,606.75,606.6,0.27073121]
[1743242448423,0.92969428,606.74,606.61,0.27073121]
[1743242448629,0.92969428,606.73,606.56,0.27073121]
[1743242448822,0.92969428,606.72,606.57,0.27073121]
[1743242449023,0.93012679,606.71,606.58,0.27073121]
[1743242449327,1.08842166,606.71,606.59,0.27073121]
[1743242449522,1.08842166,606.71,606.56,0.27073121]
[1743242449727,1.08842166,606.71,606.57,0.27073121]
[1743242449923,1.08842166,606.71,606.58,0.27073121]
[1743242450127,1.08842166,606.71,606.55,0.27073121]
[1743242450327,1.08842166,606.7,606.56,0.27073121]
[1743242450525,1.08842166,606.7,606.55,0.27073121]
[1743242450726,1.08842166,606.7,606.56,0.27073121]
[1743242451222,1.08842166,606.69,606.56,0.27073121]
[1743242452026,1.08842166,606.68,606.56,1.50294464]
[1743242452224,1.08842166,606.68,606.57,0.27073121]
[1743242452823,1.63827636,607.01,606.57,0.27073121]
[1743242453027,6.42427536,607.0,606.57,0.27073121]
[1743242453228,6.42417065,606.99,606.57,0.27073121]
[1743242453530,6.42417065,606.98,606.57,0.27073121]
[1743242453723,6.42417065,606.97,606.57,0.27073121]
[1743242453923,6.42417065,606.96,606.57,0.27073121]
[1743242454129,6.42417065,606.95,606.57,0.27073121]
[1743242454327,0.98428024,606.98,606.57,0.27073121]
[1743242454328,6.42417065,606.94,606.57,0.27073121]
[1743242454530,6.42417065,606.93,606.57,0.27073121]
[1743242454831,6.42417065,606.92,606.57,0.27073121]
[1743242455031,6.42417065,606.91,606.57,0.27073121]
[1743242455226,6.42391966,606.9,606.57,0.27073121]
[1743242455432,3.48920738,606.92,606.57,0.27073121]
[1743242455433,6.42391966,606.89,606.57,0.27073121]
[1743242455628,6.42391966,606.88,606.57,0.27073121]
[1743242455833,6.42391966,606.87,606.57,0.27073121]
[1743242456028,6.42391966,606.86,606.57,0.27073121]
[1743242456228,6.42391966,606.85,606.57,0.27073121]
[1743242456433,6.42391966,606.84,606.57,0.27073121]
[1743242456734,6.42391966,606.83,606.58,0.27073121]
[1743242457035,6.42391966,606.83,598.95,9.86694597]
[1743242457036,9.91312704,606.82,606.59,0.27073121]
[1743242457234,5.92915155,606.81,606.57,0.27073121]
[1743242457434,5.92915155,606.8,606.57,0.27073121]
[1743242457735,5.92915155,606.79,606.57,0.27073121]
[1743242457934,5.92915155,606.78,606.57,0.27073121]
[1743242458235,3.76802448,606.77,606.57,0.27073121]
[1743242458437,3.76802448,606.76,606.56,0.28677734]
[1743242458638,3.76802448,606.75,606.57,0.27073881]
[1743242458838,2.2804429,606.74,606.57,0.27073881]
[1743242459039,2.2804429,606.73,606.57,0.27073881]
[1743242459237,2.2804429,606.72,606.57,0.27073881]
[1743242459437,2.2804429,606.71,606.57,0.27073881]
[1743242459638,0.92973848,606.7,606.57,0.27073881]
[1743242459838,0.92973848,606.69,606.57,0.27073881]
[1743242460138,0.92973848,606.68,606.58,0.27073468]
[1743242460339,1.08855006,606.69,606.56,0.28677734]
[1743242460635,0.92965707,606.68,606.57,0.27073632]
[1743242460939,1.08855006,606.68,606.57,0.27073632]
[1743242461139,1.08855006,606.68,606.56,0.28677734]
[1743242461341,1.08855006,606.67,606.57,0.2707338]
[1743242461739,1.08855006,606.66,606.57,0.2707338]
[1743242462439,0.9841781,607.01,606.57,0.2707338]
[1743242462440,1.08855006,606.65,606.57,0.2707338]
[1743242462634,1.08855006,606.65,606.47,1.23221343]
[1743242462839,1.08855006,606.65,606.56,0.28680097]
[1743242463040,1.08855006,606.64,606.57,0.2707338]
[1743242463638,1.63827636,606.98,606.47,1.23221343]
[1743242463835,6.42260751,606.97,606.56,0.28678797]
[1743242464039,6.42260751,606.96,606.57,0.2707005]
[1743242464239,6.42260751,606.95,606.57,0.2707005]
[1743242464440,5.92842729,606.94,606.48,0.2707005]
[1743242464738,3.48838959,606.96,606.48,0.2707005]
[1743242464739,5.92785355,606.93,606.56,0.28675253]
[1743242464937,5.92785355,606.92,606.57,0.2707005]
[1743242465137,5.92785355,606.91,606.58,0.2707005]
[1743242465441,5.92785355,606.9,606.59,0.2707005]
[1743242465737,5.92785355,606.9,606.56,0.28675607]
[1743242465738,5.92785355,606.89,606.6,0.2707005]
[1743242466040,5.92785355,606.88,606.56,0.28675607]
[1743242466243,5.92785355,606.87,606.57,0.27070802]
[1743242466443,5.92785355,606.86,606.57,0.27070802]
[1743242466644,3.76715747,606.85,606.57,0.27070802]
[1743242466838,3.76715747,606.84,606.57,0.27070802]
[1743242467046,3.76715747,606.83,606.57,0.27070802]
[1743242467238,3.76715747,606.82,606.57,0.27070802]
[1743242467439,5.92732393,606.81,606.57,0.27070802]
[1743242467640,5.92732393,606.8,606.57,0.27070802]
[1743242467845,4.44024696,606.79,606.57,0.27070802]
[1743242468042,0.92950862,606.78,606.57,0.27070802]
[1743242468348,5.92597194,606.77,606.48,1.23221343]
[1743242468545,5.92597194,606.76,606.48,1.23221343]
[1743242468742,5.92597194,606.75,606.48,1.23221343]
[1743242468945,5.92597194,606.74,606.48,1.23221343]
[1743242469146,5.92597194,606.74,606.47,0.28681634]
[1743242469147,5.92597194,606.73,606.59,1.23221343]
[1743242469343,3.76621133,606.72,606.59,1.23221343]
[1743242469541,3.76621133,606.71,606.59,1.23221343]
[1743242469741,3.76621133,606.7,606.59,1.23221343]
[1743242469941,3.76621133,606.69,606.59,1.23221343]
[1743242470241,2.27948195,606.68,606.59,1.23221343]
[1743242470541,2.27948195,606.67,606.59,1.23221343]
[1743242470744,2.27948195,606.66,606.59,1.23221343]
[1743242470944,2.27948195,606.65,606.59,1.23221343]
[1743242471146,2.27948195,606.64,606.47,0.28681634]
[1743242471344,2.82948135,606.68,606.47,0.28681634]
[1743242471345,2.27906451,606.63,606.47,0.28681634]
[1743242471546,0.92950862,606.62,606.34,1.23221343]
[1743242471749,0.92950862,606.61,606.43,0.28686126]
[1743242471949,1.08826206,606.61,606.44,0.27082123]
[1743242472140,0.9289405,606.6,606.44,0.27082123]
[1743242472341,1.08826206,606.61,606.45,0.27082123]
[1743242472543,1.08826206,606.61,606.46,0.27082123]
[1743242472748,1.08826206,606.6,606.47,0.27082123]
[1743242472950,1.08826206,606.6,606.44,0.27082123]
[1743242473147,1.08826206,606.6,606.45,0.27082123]
[1743242473348,1.08826206,606.59,606.44,0.27082123]
[1743242473548,1.08826206,606.59,606.45,0.27082123]
[1743242473746,1.08826206,606.59,606.44,0.27082123]
[1743242473949,1.08826206,606.59,606.45,0.27082123]
[1743242474148,1.63827636,606.97,606.46,0.27082123]
[1743242474351,6.41989805,606.96,606.47,0.27082123]
[1743242474547,6.41989805,606.95,606.44,0.27082123]
[1743242474751,6.41989805,606.94,606.45,0.27082123]
[1743242474952,6.41989805,606.93,606.42,0.27082123]
[1743242475153,6.41989805,606.92,606.42,0.27082123]
[1743242475354,6.29994999,609.67,606.42,0.27082123]
[1743242475355,6.41989805,606.91,606.42,0.27082123]
[1743242475653,5.92561681,606.9,606.42,0.27082123]
[1743242475855,5.92561681,606.89,606.55,1.23221343]
[1743242476153,6.41987378,606.88,606.56,0.27082123]
[1743242476347,6.41987378,606.87,606.56,0.27082123]
[1743242476548,6.41987378,606.86,606.56,0.27082123]
[1743242476749,6.41987378,606.85,606.56,0.27082123]
[1743242476952,6.41987378,606.84,606.56,0.27082123]
[1743242477153,6.41987378,606.83,606.56,0.27082123]
[1743242477349,5.92561681,606.82,606.56,0.27082123]
[1743242477551,5.92561681,606.81,606.56,0.27082123]
[1743242477750,5.92561681,606.8,606.56,0.27082123]
[1743242477952,5.92561681,606.79,606.56,0.27082123]
[1743242478152,3.48736526,606.81,606.56,0.27082123]
[1743242478153,5.92561681,606.78,606.59,1.23221343]
[1743242478353,5.92561681,606.77,606.59,1.23221343]
[1743242478553,5.92561681,606.76,606.59,1.23221343]
[1743242478753,2.41583155,606.75,606.59,1.23221343]
[1743242478950,3.76585186,606.74,606.59,1.23221343]
[1743242479151,3.76585186,606.73,606.59,1.23221343]
[1743242479357,3.76585186,606.72,606.59,1.23221343]
[1743242479558,3.76585186,606.71,606.59,1.23221343]
[1743242479754,2.27918629,606.7,606.59,1.23221343]
[1743242479952,2.27918629,606.69,606.59,1.23221343]
[1743242480258,2.27918629,606.69,606.47,0.28678679]
[1743242480259,2.27918629,606.68,606.47,0.28678679]
[1743242480453,3.76621929,606.67,606.43,1.23221343]
[1743242480658,3.76621929,606.66,606.44,0.27080499]
[1743242480856,3.76658392,606.65,606.44,0.27080499]
[1743242481055,3.76658392,606.64,606.44,0.27080499]
[1743242481256,2.2795833,606.63,606.44,0.27080499]
[1743242481452,2.2795833,606.62,606.44,0.27080499]
[1743242481752,2.2795833,606.61,606.44,0.27080499]
[1743242482053,1.35020791,606.6,606.44,0.27080499]
[1743242482255,2.27954815,606.59,606.44,0.27080499]
[1743242482454,0.92934024,606.58,606.44,0.27080499]
[1743242482760,0.92934024,606.57,606.44,0.27080499]
[1743242483059,0.92934024,606.56,606.44,0.27080499]
[1743242483260,0.92934024,606.55,606.44,0.27080499]
[1743242483454,0.92934024,606.54,606.44,0.27080499]
[1743242483655,1.0878283,606.53,606.33,0.27080499]
[1743242483855,1.0878283,606.53,606.34,0.27080499]
[1743242484058,1.0878283,606.53,606.43,0.28687427]
[1743242484257,1.0878283,606.53,606.44,0.27080499]
[1743242484456,0.98379996,606.88,606.32,1.23221343]
[1743242484457,1.0878283,606.52,606.33,0.27080499]
[1743242484762,1.0878283,606.52,606.35,0.28687545]
[1743242484961,1.0878283,606.52,606.36,0.27080499]
[1743242485156,1.0878283,606.51,606.36,0.27080499]
[1743242485756,1.0878283,606.5,606.36,0.27080499]
[1743242486865,1.0878283,606.49,606.35,0.286879]
[1743242487061,1.0878283,606.49,606.37,0.27080499]
[1743242487261,1.0878283,606.49,606.38,0.27080499]
[1743242487461,1.0878283,606.49,606.36,0.27080499]
[1743242487660,1.0878283,606.49,606.37,0.27080499]
[1743242487858,1.0878283,606.49,606.35,0.286879]
[1743242487859,0.92946688,606.48,606.35,0.286879]
[1743242488064,2.27978943,606.47,606.3,1.23221343]
[1743242488259,2.27978943,606.46,606.3,1.23221343]
[1743242488465,2.27978943,606.45,606.3,1.23221343]
[1743242488665,2.27978943,606.44,606.3,1.23221343]
[1743242488862,2.27978943,606.43,606.3,1.23221343]
[1743242489160,0.92946688,606.42,606.3,1.23221343]
[1743242489359,0.92887633,606.41,606.3,1.23221343]
[1743242489565,2.82822866,606.43,606.3,1.23221343]
[1743242489767,1.0878283,606.41,606.3,1.23221343]
[1743242490167,1.0878283,606.41,606.25,0.2869263]
[1743242490367,1.0878283,606.4,606.25,0.2869263]
[1743242491163,1.0878283,606.39,606.25,0.2869263]
[1743242491565,1.0878283,606.39,606.26,0.27088114]
[1743242491868,2.81789656,606.71,606.26,0.27088114]
[1743242492068,5.92140711,606.7,606.26,0.27088114]
[1743242492261,8.74708754,606.69,606.26,0.27088114]
[1743242492462,5.92140711,606.68,606.26,0.27088114]
[1743242492769,2.82568043,606.69,606.27,0.27088114]
[1743242492770,5.92140711,606.67,606.27,0.27088114]
[1743242492966,3.76208465,606.66,606.25,0.28690856]
[1743242493163,3.76159047,606.65,606.25,0.28690856]
[1743242493367,5.91853888,606.64,606.25,0.28690856]
[1743242493566,5.91853888,606.63,606.25,0.28690856]
[1743242493763,3.76159047,606.62,606.25,0.28690856]
[1743242494071,3.76159047,606.61,606.25,0.28690856]
[1743242494372,3.76133494,606.6,606.25,0.28690856]
[1743242494572,2.2768512,606.59,606.25,0.28690856]
[1743242494771,2.2768512,606.58,606.25,0.28690856]
[1743242494974,2.2768512,606.57,606.25,0.28690856]
[1743242495170,2.2768512,606.56,606.25,0.28690856]
[1743242495366,2.2768512,606.55,606.25,0.28690856]
[1743242495671,3.36365136,606.54,606.25,0.28690856]
[1743242495867,2.2768512,606.53,606.25,0.28690856]
[1743242496069,0.9282709,606.52,606.25,0.28690856]
[1743242496270,0.9282709,606.51,606.25,0.28690856]
[1743242496475,0.9282709,606.5,606.25,0.28690856]
[1743242496775,2.01507106,606.49,606.25,0.28690856]
[1743242496975,0.9282709,606.48,606.25,0.28690856]
[1743242497179,1.08680016,606.49,606.25,0.28690856]
[1743242497371,0.92728516,606.48,606.25,0.28690856]
[1743242497569,1.08680016,606.48,606.25,0.28690856]
[1743242497971,1.08680016,606.47,606.25,0.28690856]
[1743242498372,0.92705872,606.46,606.25,0.28690856]
[1743242498572,2.27380528,606.45,605.83,1.23221343]
[1743242498878,2.27380528,606.44,606.19,0.28699847]
[1743242499177,2.27380528,606.44,605.83,1.23221343]
[1743242499178,0.92705872,606.43,606.2,0.27094106]
[1743242499377,0.92705872,606.42,605.84,0.27094106]
[1743242499575,0.92705872,606.41,605.85,0.27094106]
[1743242499775,1.08680016,606.43,605.87,1.23221343]
[1743242499974,0.9268871,606.42,605.88,0.27094106]
[1743242500177,1.08680016,606.43,605.88,0.27094106]
[1743242500378,2.01366617,606.42,605.88,0.27094106]
[1743242500578,2.27331291,606.41,605.88,0.27094106]
[1743242500779,2.27331291,606.4,605.88,0.27094106]
[1743242501079,5.09602883,606.39,605.88,0.27094106]
[1743242501279,2.27318192,606.38,605.88,0.27094106]
[1743242501479,2.27318192,606.37,605.88,0.27094106]
[1743242501675,2.27318192,606.36,605.88,0.27094106]
[1743242501871,2.27318192,606.35,605.87,1.23221343]
[1743242502075,2.27318192,606.34,605.87,1.23221343]
[1743242502274,3.35998208,606.33,605.87,1.23221343]
[1743242502476,2.27226485,606.32,605.87,1.23221343]
[1743242502675,0.92673502,606.31,605.88,0.27099602]
[1743242502878,0.92673502,606.3,605.88,0.27099602]
[1743242503073,0.92673502,606.29,605.88,0.27099602]
[1743242503281,1.08680016,606.31,605.89,0.27099602]
[1743242503473,0.92587252,606.3,605.87,0.27099602]
[1743242503675,0.92587252,606.29,605.88,0.27099602]
[1743242503981,1.08680016,606.31,605.89,0.27099602]
[1743242504178,1.08680016,606.29,605.87,0.27099602]
[1743242504373,1.08680016,606.29,605.88,0.27099602]
[1743242504578,0.92558859,606.28,605.89,0.2709918]
[1743242504781,0.92558859,606.28,605.9,0.2709918]
[1743242504782,1.08680016,606.28,605.9,0.2709918]
[1743242505083,1.08680016,606.28,605.32,1.56079829]
[1743242505084,0.92530154,606.27,605.91,0.2709918]
[1743242505273,1.08680016,606.28,605.75,0.2709918]
[1743242505582,7.48454071,607.95,605.74,1.23221343]
[1743242505583,1.08680016,606.27,605.76,0.2709918]
[1743242505780,1.08680016,606.27,605.75,0.2709918]
[1743242505981,1.08680016,606.27,605.74,1.23221343]
[1743242505982,1.08680016,606.27,605.76,0.55804354]
[1743242506176,1.08680016,606.26,605.76,0.55804354]
[1743242506381,1.08680016,606.26,605.77,0.2709918]
[1743242506780,1.08680016,606.25,605.77,0.2709918]
[1743242506981,1.08680016,606.25,605.79,1.23221343]
[1743242507280,2.64478349,606.6,605.8,0.2709918]
[1743242507482,6.39253021,606.59,605.8,0.2709918]
[1743242507785,6.39253021,606.58,605.8,0.2709918]
[1743242507983,6.39253021,606.57,605.8,0.2709918]
[1743242508178,6.39253021,606.56,605.8,0.2709918]
[1743242508378,6.39253021,606.55,605.8,0.2709918]
[1743242508584,6.39253021,606.54,605.8,0.2709918]
[1743242508784,6.39253021,606.53,605.8,0.2709918]
[1743242508979,3.49350769,606.52,605.8,0.2709918]
[1743242509186,6.39087261,606.51,605.8,0.2709918]
[1743242509487,6.39087261,606.5,605.81,0.2709918]
[1743242509687,6.39087261,606.49,605.82,0.27103605]
[1743242509984,6.39087261,606.48,605.83,0.27103605]
[1743242510185,5.89613777,606.47,605.77,0.27103605]
[1743242510385,5.89613777,606.46,605.78,0.27103605]
[1743242510587,5.89613777,606.45,605.77,0.27103605]
[1743242510785,5.89613777,606.44,605.78,0.27103605]
[1743242510983,3.49350769,606.43,605.79,0.27103605]
[1743242511186,5.89481909,606.42,605.77,0.27103605]
[1743242511386,5.89481909,606.41,605.78,0.27103605]
[1743242511587,5.89481909,606.4,605.77,0.27103605]
[1743242511783,3.74472902,606.39,605.77,0.27103605]
[1743242511986,3.74472902,606.38,605.77,0.27103605]
[1743242512184,3.47374152,606.41,605.77,0.27103605]
[1743242512185,5.89034543,606.37,605.77,0.27103605]
[1743242512389,3.74472902,606.36,605.77,0.27103605]
[1743242512591,3.74472902,606.35,605.77,0.27103605]